bitfinex/quotes_BTCUSD_20250608
["timestamp","ask_amount","ask_price","bid_price","bid_amount"]
[1749354136073,0.62306344,105600.0,105590.0,0.45532328]
[1749354137612,0.62306344,105600.0,105590.0,0.44002328]
[1749354139991,0.62306344,105600.0,105590.0,0.4489054]
[1749354140406,0.62306344,105600.0,105590.0,0.44002328]
[1749354140609,0.62306344,105600.0,105590.0,0.4489054]
[1749354141552,0.62306344,105600.0,105590.0,0.44002328]
[1749354141755,0.62306344,105600.0,105590.0,0.44890526]
[1749354141955,0.62306344,105600.0,105590.0,0.44002328]
[1749354142171,0.62306344,105600.0,105590.0,0.44890526]
[1749354142375,0.62306344,105600.0,105590.0,0.44002328]
[1749354142826,0.62306344,105600.0,105590.0,0.44890526]
[1749354142998,0.62306344,105600.0,105590.0,0.44002328]
[1749354143204,0.62306344,105600.0,105590.0,0.4489051]
[1749354143792,0.62306344,105600.0,105590.0,0.44002328]
[1749354143987,0.62306344,105600.0,105590.0,0.48675635]
[1749354144199,0.53638344,105600.0,105590.0,0.63831662]
[1749354144405,0.62310344,105600.0,105590.0,0.67616787]
[1749354144599,0.62310344,105600.0,105590.0,0.48675584]
[1749354144799,0.62310344,105600.0,105590.0,0.48675577]
[1749354145000,0.62310344,105600.0,105590.0,0.47787453]
[1749354145988,0.62310344,105600.0,105590.0,0.48675535]
[1749354146199,0.62310344,105600.0,105590.0,0.47787453]
[1749354146406,0.62310344,105600.0,105590.0,0.48675513]
[1749354146831,0.62310344,105600.0,105590.0,0.47787453]
[1749354148097,0.62310344,105600.0,105590.0,0.48675489]
[1749354148326,0.62310344,105600.0,105590.0,0.43675463]
[1749354148504,0.62310344,105600.0,105590.0,0.42787453]
[1749354149746,0.62310344,105600.0,105590.0,0.43675383]
[1749354149919,0.62310344,105600.0,105590.0,0.42787453]
[1749354150069,0.62310344,105600.0,105590.0,0.43675353]
[1749354150271,0.62310344,105600.0,105590.0,0.42787453]
[1749354153213,0.62310344,105600.0,105590.0,0.43675306]
[1749354153421,0.62310344,105600.0,105590.0,0.42787453]
[1749354153608,0.62310344,105600.0,105590.0,0.43675268]
[1749354153797,0.62310344,105600.0,105590.0,0.42787453]
[1749354154485,0.62310344,105600.0,105590.0,0.43675283]
[1749354154692,0.62310344,105600.0,105590.0,0.42787453]
[1749354155289,0.62310344,105600.0,105590.0,0.43675338]
[1749354155492,0.62310344,105600.0,105590.0,0.42787453]
[1749354155896,0.62310344,105600.0,105590.0,0.43675379]
[1749354156102,0.62310344,105600.0,105590.0,0.42787453]
[1749354156754,0.62310344,105600.0,105590.0,0.43675385]
[1749354157079,0.62310344,105600.0,105590.0,0.43675321]
[1749354157288,0.62310344,105600.0,105590.0,0.42787453]
[1749354157495,0.62310344,105600.0,105590.0,0.43675322]
[1749354157706,0.62310344,105600.0,105590.0,0.42787453]
[1749354157860,0.62310344,105600.0,105590.0,0.43675322]
[1749354158620,0.62310344,105600.0,105590.0,0.42787453]
[1749354158840,0.62310344,105600.0,105590.0,0.43675308]
[1749354159050,0.62310344,105600.0,105590.0,0.43671308]
[1749354159280,0.62310344,105600.0,105590.0,0.42783453]
[1749354159848,0.62310344,105600.0,105590.0,0.43671294]
[1749354160051,0.62310344,105600.0,105590.0,0.42783453]
[1749354160250,0.62310344,105600.0,105590.0,0.43671294]
[1749354160679,0.62310344,105600.0,105590.0,0.42783453]
[1749354161143,0.62310344,105600.0,105590.0,0.43671342]
[1749354161350,0.62310344,105600.0,105590.0,0.42783453]
[1749354161534,0.62310344,105600.0,105590.0,0.43671363]
[1749354161753,0.62310344,105600.0,105590.0,0.42783453]
[1749354161968,0.62310344,105600.0,105590.0,0.6172464]
[1749354162193,0.62310344,105600.0,105590.0,0.42783453]
[1749354163480,0.62310344,105600.0,105590.0,0.43671605]
[1749354163892,0.62310344,105600.0,105590.0,0.42783453]
[1749354165790,0.53638344,105600.0,105590.0,0.43671605]
[1749354166003,0.62306344,105600.0,105590.0,0.43671605]
[1749354166213,0.62306344,105600.0,105590.0,0.42783453]
[1749354166420,0.62306344,105600.0,105590.0,0.43671525]
[1749354166627,0.62306344,105600.0,105590.0,0.42783453]
[1749354166988,0.62306344,105600.0,105590.0,0.43671524]
[1749354167190,0.62306344,105600.0,105590.0,0.42783453]
[1749354167394,0.62306344,105600.0,105590.0,0.43671544]
[1749354167864,0.62306344,105600.0,105590.0,0.42783453]
[1749354168066,0.62306344,105600.0,105590.0,0.43671544]
[1749354168283,0.62306344,105600.0,105590.0,0.42783453]
[1749354168685,0.62306344,105600.0,105590.0,0.62612731]
[1749354169011,0.62306344,105600.0,105590.0,0.43671544]
[1749354169420,0.62306344,105600.0,105590.0,0.43671584]
[1749354169770,0.62306344,105600.0,105590.0,0.42783453]
[1749354170477,0.62306344,105600.0,105590.0,0.43671858]
[1749354172394,0.62306344,105600.0,105590.0,0.43671793]
[1749354173023,0.62306344,105600.0,105590.0,0.42783453]
[1749354173248,0.62306344,105600.0,105590.0,0.43671817]
[1749354173445,0.62306344,105600.0,105590.0,0.42783453]
[1749354173949,0.62306344,105600.0,105590.0,0.43671817]
[1749354175144,0.62306344,105600.0,105590.0,0.43671816]
[1749354175367,0.62306344,105600.0,105590.0,0.43671815]
[1749354175573,0.62306344,105600.0,105590.0,0.43671816]
[1749354175774,0.62306344,105600.0,105590.0,0.4367183]
[1749354176480,0.62306344,105600.0,105590.0,0.43671877]
[1749354176935,0.62306344,105600.0,105590.0,0.43671878]
[1749354177063,0.62306344,105600.0,105590.0,0.42783453]
[1749354177263,0.62306344,105600.0,105590.0,0.43671877]
[1749354177942,0.62306344,105600.0,105590.0,0.42783453]
[1749354178187,0.62306344,105600.0,105590.0,0.43671879]
[1749354178561,0.62306344,105600.0,105590.0,0.42783453]
[1749354178717,0.62306344,105600.0,105590.0,0.43671881]
[1749354178915,0.62306344,105600.0,105590.0,0.43671899]
[1749354179121,0.62306344,105600.0,105590.0,0.43671881]
[1749354179395,0.62306344,105600.0,105590.0,0.42783453]
[1749354179566,0.62306344,105600.0,105590.0,0.43671883]
[1749354180412,0.62306344,105600.0,105590.0,0.43671882]
[1749354180794,0.62306344,105600.0,105590.0,0.62613087]
[1749354180993,0.62306344,105600.0,105590.0,0.62613071]
[1749354181568,0.62306344,105600.0,105590.0,0.62613188]
[1749354182155,0.62306344,105600.0,105590.0,0.61724757]
[1749354182360,0.62306344,105600.0,105590.0,0.62613188]
[1749354183443,0.62306344,105600.0,105590.0,0.62613191]
[1749354183661,0.62306344,105600.0,105590.0,0.62613207]
[1749354183956,0.62306344,105600.0,105590.0,0.626132]
[1749354184157,0.62306344,105600.0,105590.0,0.62613213]
[1749354184399,0.62306344,105600.0,105590.0,0.43671985]
[1749354184628,0.62306344,105600.0,105590.0,0.43671984]
[1749354184762,0.53638344,105600.0,105590.0,0.42783558]
[1749354184969,0.62306344,105600.0,105590.0,0.43671983]
[1749354185149,0.62306344,105600.0,105590.0,0.42783558]
[1749354185354,0.62306344,105600.0,105590.0,0.43671983]
[1749354185573,0.62306344,105600.0,105590.0,0.42783558]
[1749354185976,0.62306344,105600.0,105590.0,0.43671983]
[1749354186359,0.62306344,105600.0,105590.0,0.43671966]
[1749354186568,0.62306344,105600.0,105590.0,0.42783558]
[1749354186806,0.62306344,105600.0,105590.0,0.43671904]
[1749354187015,0.62306344,105600.0,105590.0,0.43671875]
[1749354187616,0.62306344,105600.0,105590.0,0.43671855]
[1749354187815,0.62306344,105600.0,105590.0,0.43671863]
[1749354188014,0.62306344,105600.0,105590.0,0.43671875]
[1749354188388,0.62306344,105600.0,105590.0,0.43671891]
[1749354188587,0.62306344,105600.0,105590.0,0.42783558]
[1749354188794,0.62306344,105600.0,105590.0,0.43671873]
[1749354188998,0.62306344,105600.0,105590.0,0.43671867]
[1749354189171,0.62306344,105600.0,105590.0,0.42783558]
[1749354189322,0.62306344,105600.0,105590.0,0.43671861]
[1749354189537,0.62306344,105600.0,105590.0,0.42783558]
[1749354189736,0.62306344,105600.0,105590.0,0.43671855]
[1749354190342,0.62306344,105600.0,105590.0,0.43671852]
[1749354190551,0.62306344,105600.0,105590.0,0.4367185]
[1749354190747,0.62306344,105600.0,105590.0,0.43671855]
[1749354190993,0.62306344,105600.0,105590.0,0.42783558]
[1749354191330,0.62306344,105600.0,105590.0,0.43671859]
[1749354191555,0.62306344,105600.0,105590.0,0.43671853]
[1749354191761,0.63846344,105600.0,105590.0,0.42783558]
[1749354191963,0.63846344,105600.0,105590.0,0.43671854]
[1749354192527,0.63846344,105600.0,105590.0,0.43671852]
[1749354192724,0.63846344,105600.0,105590.0,0.42783558]
[1749354192925,0.63846344,105600.0,105590.0,0.43671855]
[1749354193332,0.63846344,105600.0,105590.0,0.42783558]
[1749354193531,0.63846344,105600.0,105590.0,0.43671845]
[1749354193912,0.63846344,105600.0,105590.0,0.42783558]
[1749354194116,0.63846344,105600.0,105590.0,0.43671842]
[1749354194454,0.63846344,105600.0,105590.0,0.42783558]
[1749354194828,0.63846344,105600.0,105590.0,0.43671842]
[1749354195031,0.63846344,105600.0,105590.0,0.42783558]
[1749354195235,0.63846344,105600.0,105590.0,0.43671842]
[1749354195640,0.63846344,105600.0,105590.0,0.43671829]
[1749354196258,0.63846344,105600.0,105590.0,0.43671826]
[1749354196864,0.63846344,105600.0,105590.0,0.43671828]
[1749354197348,0.63846344,105600.0,105590.0,0.40829008]
[1749354197778,0.63846344,105600.0,105590.0,0.40828984]
[1749354198024,0.63846344,105600.0,105590.0,0.39940706]
[1749354198234,0.63846344,105600.0,105590.0,0.40828981]
[1749354198450,0.63846344,105600.0,105590.0,0.39940706]
[1749354198665,0.63846344,105600.0,105590.0,0.40828981]
[1749354199303,0.63846344,105600.0,105590.0,0.40828983]
[1749354199526,0.63846344,105600.0,105590.0,0.39940706]
[1749354199758,0.63846344,105600.0,105590.0,0.40828979]
[1749354199978,0.63846344,105600.0,105590.0,0.39940706]
[1749354200191,0.63846344,105600.0,105590.0,0.40828977]
[1749354200999,0.63846344,105600.0,105590.0,0.40828971]
[1749354201213,0.63846344,105600.0,105590.0,0.39940706]
[1749354201903,0.63846344,105600.0,105590.0,0.4082899]
[1749354202114,0.63846344,105600.0,105590.0,0.40828974]
[1749354202825,0.63846344,105600.0,105590.0,0.39940706]
[1749354203261,0.63846344,105600.0,105590.0,0.40828965]
[1749354203517,0.63846344,105600.0,105590.0,0.42782666]
[1749354203731,0.63846344,105600.0,105590.0,0.43670725]
[1749354203974,0.63846344,105600.0,105590.0,0.43670571]
[1749354204611,0.63846344,105600.0,105590.0,0.43670559]
[1749354204811,0.63846344,105600.0,105590.0,0.42782666]
[1749354205231,0.63846344,105600.0,105590.0,0.43670559]
[1749354205641,0.63846344,105600.0,105590.0,0.42782666]
[1749354205862,0.63846344,105600.0,105590.0,0.43670559]
[1749354206870,0.63846344,105600.0,105590.0,0.42782666]
[1749354207074,0.63846344,105600.0,105590.0,0.43670559]
[1749354207279,0.63846344,105600.0,105590.0,0.40828599]
[1749354207986,0.63846344,105600.0,105590.0,0.40828596]
[1749354208928,0.63846344,105600.0,105590.0,0.39940706]
[1749354209129,0.63846344,105600.0,105590.0,0.40828596]
[1749354209843,0.63846344,105600.0,105590.0,0.40828662]
[1749354210140,0.63846344,105600.0,105590.0,0.39940706]
[1749354210353,0.63846344,105600.0,105590.0,0.40828646]
[1749354210495,0.63846344,105600.0,105590.0,0.39940706]
[1749354210963,0.63846344,105600.0,105590.0,0.40828639]
[1749354211347,0.63846344,105600.0,105590.0,0.39940706]
[1749354212038,0.63846344,105600.0,105590.0,0.40828646]
[1749354212416,0.63846344,105600.0,105590.0,0.40828645]
[1749354212547,0.63846344,105600.0,105590.0,0.39940706]
[1749354212738,0.63846344,105600.0,105590.0,0.40828645]
[1749354213139,0.63846344,105600.0,105590.0,0.4367013]
[1749354213557,0.63846344,105600.0,105590.0,0.42782191]
[1749354213759,0.63846344,105600.0,105590.0,0.43670101]
[1749354213957,0.63846344,105600.0,105590.0,0.42782191]
[1749354214375,0.63846344,105600.0,105590.0,0.43669954]
[1749354214572,0.63846344,105600.0,105590.0,0.43669967]
[1749354214985,0.63846344,105600.0,105590.0,0.43669914]
[1749354215193,0.63846344,105600.0,105590.0,0.43669894]
[1749354215413,0.63846344,105600.0,105590.0,0.42782003]
[1749354215781,0.63846344,105600.0,105590.0,0.43669895]
[1749354216000,0.63846344,105600.0,105590.0,0.43669897]
[1749354216413,0.63846344,105600.0,105590.0,0.42782003]
[1749354216644,0.63846344,105600.0,105590.0,0.43669891]
[1749354216845,0.63846344,105600.0,105590.0,0.40828594]
[1749354217246,0.63846344,105600.0,105590.0,0.40828578]
[1749354217484,0.63846344,105600.0,105590.0,0.39940706]
[1749354217846,0.63846344,105600.0,105590.0,0.42781933]
[1749354218056,0.63846344,105600.0,105590.0,0.43669822]
[1749354218237,0.63846344,105600.0,105590.0,0.43669819]
[1749354218436,0.63846344,105600.0,105590.0,0.40828592]
[1749354218860,0.63846344,105600.0,105590.0,0.39940706]
[1749354219139,0.63846344,105600.0,105590.0,0.40828599]
[1749354219295,0.63846344,105600.0,105590.0,0.40828613]
[1749354219905,0.63846344,105600.0,105590.0,0.40828592]
[1749354220518,0.63846344,105600.0,105590.0,0.39940706]
[1749354220861,0.63846344,105600.0,105590.0,0.40828601]
[1749354220975,0.63846344,105600.0,105590.0,0.43669909]
[1749354221180,0.63846344,105600.0,105590.0,0.43669985]
[1749354221388,0.63846344,105600.0,105590.0,0.42782067]
[1749354221591,0.63846344,105600.0,105590.0,0.39940706]
[1749354221798,0.63846344,105600.0,105590.0,0.40828615]
[1749354222434,0.63846344,105600.0,105590.0,0.40828614]
[1749354222804,0.63846344,105600.0,105590.0,0.43669987]
[1749354223008,0.63846344,105600.0,105590.0,0.42782077]
[1749354223211,0.63846344,105600.0,105590.0,0.40828626]
[1749354223353,0.63846344,105600.0,105590.0,0.40828623]
[1749354223777,0.63846344,105600.0,105590.0,0.40828615]
[1749354223981,0.63846344,105600.0,105590.0,0.40828613]
[1749354224304,0.63846344,105600.0,105590.0,0.4082861]
[1749354224469,0.63846344,105600.0,105590.0,0.40828608]
[1749354224671,0.63846344,105600.0,105590.0,0.40828618]
[1749354224923,0.63846344,105600.0,105590.0,0.39940706]
[1749354225138,0.63846344,105600.0,105590.0,0.40828622]
[1749354226098,0.63846344,105600.0,105590.0,0.40828626]
[1749354226304,0.63846344,105600.0,105590.0,0.40828628]
[1749354226508,0.63846344,105600.0,105590.0,0.40828631]
[1749354227700,0.63846344,105600.0,105590.0,0.40828603]
[1749354227882,0.63846344,105600.0,105590.0,0.39940706]
[1749354228126,0.63846344,105600.0,105590.0,0.40828591]
[1749354228343,0.63846344,105600.0,105590.0,0.39940706]
[1749354228563,0.63846344,105600.0,105590.0,0.40828601]
[1749354229444,0.63846344,105600.0,105590.0,0.40828591]
[1749354229946,0.63846344,105600.0,105590.0,0.40828592]
[1749354230157,0.63846344,105600.0,105590.0,0.43669884]
[1749354230572,0.63846344,105600.0,105590.0,0.43669886]
[1749354231004,0.53638344,105600.0,105590.0,0.59769782]
[1749354231214,0.62302344,105600.0,105590.0,0.59769782]
[1749354231428,0.62302344,105600.0,105590.0,0.58881893]
[1749354231873,0.62302344,105600.0,105590.0,0.59769765]
[1749354232088,0.62302344,105600.0,105590.0,0.58881893]
[1749354232336,0.62302344,105600.0,105590.0,0.59769763]
[1749354233303,0.62302344,105600.0,105590.0,0.5976977]
[1749354233505,0.62302344,105600.0,105590.0,0.59769776]
[1749354233763,0.62302344,105600.0,105590.0,0.58881893]
[1749354233984,0.62302344,105600.0,105590.0,0.59769776]
[1749354235097,0.62302344,105600.0,105590.0,0.59769775]
[1749354235311,0.62302344,105600.0,105590.0,0.58881893]
[1749354235513,0.62302344,105600.0,105590.0,0.59769775]
[1749354236594,0.62302344,105600.0,105590.0,0.58881893]
[1749354236815,0.62302344,105600.0,105590.0,0.59769776]
[1749354237592,0.62302344,105600.0,105590.0,0.59769775]
[1749354237830,0.62302344,105600.0,105590.0,0.58881893]
[1749354238030,0.62302344,105600.0,105590.0,0.59769775]
[1749354238446,0.62302344,105600.0,105590.0,0.59769774]
[1749354238658,0.62302344,105600.0,105590.0,0.58881893]
[1749354238870,0.62302344,105600.0,105590.0,0.59769774]
[1749354239086,0.62302344,105600.0,105590.0,0.59769742]
[1749354239501,0.62302344,105600.0,105590.0,0.59769748]
[1749354239947,0.62302344,105600.0,105590.0,0.59769749]
[1749354240425,0.62302344,105600.0,105590.0,0.5976976]
[1749354240628,0.62302344,105600.0,105590.0,0.58881893]
[1749354240834,0.62302344,105600.0,105590.0,0.59769761]
[1749354241997,0.62302344,105600.0,105590.0,0.58881893]
[1749354242279,0.35893821,105600.0,105590.0,0.60716795]
[1749354242486,0.46451714,105600.0,105590.0,0.59769754]
[1749354243126,0.46451714,105600.0,105590.0,0.61663863]
[1749354243340,0.46451714,105600.0,105590.0,0.60716813]
[1749354243551,0.46451714,105600.0,105590.0,0.59828952]
[1749354243758,0.46451714,105600.0,105590.0,0.59769784]
[1749354243986,0.46451714,105600.0,105590.0,0.59828952]
[1749354244203,0.46451714,105600.0,105590.0,0.58881893]
[1749354244377,0.47398683,105600.0,105590.0,0.58881893]
[1749354245643,0.47398683,105600.0,105590.0,0.59828952]
[1749354245819,0.46451714,105600.0,105590.0,0.59828952]
[1749354246031,0.46451714,105600.0,105590.0,0.58881893]
[1749354246211,0.46451714,105600.0,105590.0,0.59828952]
[1749354246764,0.46451714,105600.0,105590.0,0.58881893]
[1749354247301,0.45504754,105600.0,105590.0,0.58881893]
[1749354247481,0.46451714,105600.0,105590.0,0.58881893]
[1749354247737,0.46451714,105600.0,105590.0,0.59828952]
[1749354249203,0.46451714,105600.0,105590.0,0.59866842]
[1749354249405,0.37787714,105600.0,105590.0,0.61366842]
[1749354249619,0.34,105600.0,105590.0,1.13991561]
[1749354249833,0.42664,105600.0,105590.0,1.16831119]
[1749354250044,0.08664,105600.0,105590.0,1.11153432]
[1749354250271,0.08664,105600.0,105590.0,1.16830433]
[1749354250505,0.08664,105600.0,105590.0,1.11153432]
[1749354251146,0.08664,105600.0,105590.0,1.11353432]
[1749354251361,0.93693634,105610.0,105600.0,0.23318118]
[1749354251586,0.93693634,105610.0,105600.0,0.76242273]
[1749354251810,0.94640478,105610.0,105600.0,0.76242282]
[1749354252664,0.94640478,105610.0,105600.0,0.75295358]
[1749354252881,0.94640478,105610.0,105600.0,0.762423]
[1749354254340,0.94640478,105610.0,105600.0,0.7907842]
[1749354256515,0.45504478,105610.0,105600.0,0.7907842]
[1749354256832,0.36840478,105610.0,105600.0,0.7907842]
[1749354257034,0.45504478,105610.0,105600.0,0.7907842]
[1749354264623,0.45504478,105610.0,105600.0,0.78131478]
[1749354264812,0.4645134,105610.0,105600.0,0.78131478]
[1749354265147,0.45504478,105610.0,105600.0,0.7907842]
[1749354265595,0.45500478,105610.0,105600.0,0.7907842]
[1749354265796,0.46447331,105610.0,105600.0,0.78131478]
[1749354265998,0.46447331,105610.0,105600.0,0.7907842]
[1749354266158,0.45500478,105610.0,105600.0,0.7907842]
[1749354267062,0.4644734,105610.0,105600.0,0.78131478]
[1749354267795,0.46447331,105610.0,105600.0,0.78131478]
[1749354267985,0.46447331,105610.0,105600.0,0.7907842]
[1749354268321,0.45500478,105610.0,105600.0,0.7907842]
[1749354268710,0.45500478,105610.0,105600.0,0.80025353]
[1749354268884,0.45500478,105610.0,105600.0,0.7907842]
[1749354269278,0.34946808,105610.0,105600.0,0.8059842]
[1749354269603,0.44553436,105620.0,105610.0,0.22369223]
[1749354269840,0.4550019,105620.0,105610.0,0.95747078]
[1749354270077,0.46446962,105620.0,105610.0,0.98583752]
[1749354270303,0.4550019,105620.0,105610.0,0.98583752]
[1749354270556,0.4550019,105620.0,105610.0,0.97063743]
[1749354270782,0.4550019,105620.0,105610.0,0.9611689]
[1749354270991,0.46446962,105620.0,105610.0,0.97063752]
[1749354271217,0.46546962,105620.0,105610.0,0.9611689]
[1749354271423,0.46546962,105620.0,105610.0,0.97063761]
[1749354271663,0.46646962,105620.0,105610.0,0.9611689]
[1749354272165,0.46646962,105620.0,105610.0,0.56616192]
[1749354272386,0.47593752,105620.0,105610.0,0.9611689]
[1749354274299,0.47593752,105620.0,105610.0,0.56616192]
[1749354274801,0.47593752,105620.0,105610.0,0.55116192]
[1749354275616,0.47593743,105620.0,105610.0,0.55116192]
[1749354277383,0.47593743,105620.0,105610.0,0.52281879]
[1749354277603,0.47593743,105620.0,105610.0,0.51334999]
[1749354277804,0.47593743,105620.0,105610.0,0.52281879]
[1749354278614,0.47593743,105620.0,105610.0,0.51334999]
[1749354279983,0.46647034,105620.0,105610.0,0.51334999]
[1749354280161,0.47593824,105620.0,105610.0,0.51334999]
[1749354283647,0.45700253,105620.0,105610.0,0.5228187]
[1749354283854,0.46647043,105620.0,105610.0,0.52281879]
[1749354287537,0.45700253,105620.0,105610.0,0.5322875]
[1749354288702,0.43806727,105620.0,105610.0,0.52281879]
[1749354288915,0.45700253,105620.0,105610.0,0.52281879]
[1749354289147,0.45700253,105620.0,105610.0,0.5322875]
[1749354291333,0.45700262,105620.0,105610.0,0.5322875]
[1749354291538,0.44753481,105620.0,105610.0,0.5322875]
[1749354291752,0.45700253,105620.0,105610.0,0.52281879]
[1749354291964,0.46647034,105620.0,105610.0,0.5322875]
[1749354292190,0.45700253,105620.0,105610.0,0.5322875]
[1749354292378,0.45700253,105620.0,105610.0,0.58904024]
[1749354292628,0.46647034,105620.0,105610.0,0.57957153]
[1749354292841,0.46647034,105620.0,105610.0,0.58904024]
[1749354293051,0.46647034,105620.0,105610.0,0.57957153]
[1749354294007,0.46647034,105620.0,105610.0,0.57010273]
[1749354294236,0.46647034,105620.0,105610.0,0.57957153]
[1749354295485,0.46647034,105620.0,105610.0,0.57010273]
[1749354295903,0.46647034,105620.0,105610.0,0.57957153]
[1749354298878,0.65582841,105620.0,105610.0,0.57010273]
[1749354299097,0.67192841,105620.0,105610.0,0.57010273]
[1749354301354,0.48257034,105620.0,105610.0,0.57010273]
[1749354304480,0.67192841,105620.0,105610.0,0.57010273]
[1749354304877,0.67192841,105620.0,105610.0,0.53226764]
[1749354305333,0.6689936,105620.0,105610.0,0.05675274]
[1749354305661,0.6689936,105620.0,105610.0,0.34247274]
[1749354306090,0.6689936,105620.0,105610.0,0.37087896]
[1749354306732,0.6689936,105620.0,105610.0,0.31412622]
[1749354306937,0.6689936,105620.0,105610.0,0.28572]
[1749354309973,0.58988159,105610.0,105600.0,0.21779963]
[1749354310203,0.58041333,105610.0,105600.0,0.50351963]
[1749354310423,0.58041333,105610.0,105600.0,0.50352015]
[1749354313150,0.58041333,105610.0,105600.0,0.50346982]
[1749354316649,0.5709448,105610.0,105600.0,0.50346982]
[1749354318702,0.5709448,105610.0,105600.0,0.31407589]
[1749354318856,0.5709448,105610.0,105600.0,0.50346982]
[1749354319063,0.5709448,105610.0,105600.0,0.02835589]
[1749354319270,0.5709448,105610.0,105600.0,0.31459589]
[1749354322009,0.5709448,105610.0,105600.0,0.02835589]
[1749354322215,0.05083875,105600.0,105590.0,0.33165743]
[1749354322420,0.13771875,105600.0,105590.0,0.61789743]
[1749354322959,0.12171875,105600.0,105590.0,0.61789743]
[1749354323163,0.13118817,105600.0,105590.0,0.61789743]
[1749354323355,0.13118817,105600.0,105590.0,0.61889743]
[1749354324365,0.1406575,105600.0,105590.0,0.59154154]
[1749354325101,0.1406575,105600.0,105590.0,0.61989672]
[1749354325315,0.1406575,105600.0,105590.0,0.59154154]
[1749354327173,0.1406575,105600.0,105590.0,0.64829428]
[1749354329112,0.1406575,105600.0,105590.0,0.65776487]
[1749354329365,0.1406575,105600.0,105590.0,0.64829428]
[1749354329561,0.1406575,105600.0,105590.0,0.78776487]
[1749354329737,0.1406575,105600.0,105590.0,0.65776487]
[1749354332059,0.1247575,105600.0,105590.0,0.65776487]
[1749354332258,0.1247575,105600.0,105590.0,0.66723537]
[1749354332878,0.1152879,105600.0,105590.0,0.66723537]
[1749354333078,0.1247575,105600.0,105590.0,0.66723537]
[1749354333298,0.10581848,105600.0,105590.0,0.66723537]
[1749354333505,0.1152879,105600.0,105590.0,0.67670578]
[1749354334280,0.10581848,105600.0,105590.0,0.66723537]
[1749354334481,0.12475687,105600.0,105590.0,0.79723537]
[1749354334685,0.12475687,105600.0,105590.0,0.67670578]
[1749354335361,0.12475687,105600.0,105590.0,0.66723537]
[1749354335939,0.12475687,105600.0,105590.0,0.67670578]
[1749354336158,0.11528736,105600.0,105590.0,0.6861761]
[1749354336634,0.12475678,105600.0,105590.0,0.67670578]
[1749354336862,0.12475678,105600.0,105590.0,0.63883082]
[1749354337308,0.11528736,105600.0,105590.0,0.67297137]
[1749354337520,0.10581803,105600.0,105590.0,0.66350078]
[1749354338118,0.11528736,105600.0,105590.0,0.66350078]
[1749354338898,0.10581803,105600.0,105590.0,0.65403055]
[1749354339075,0.11528736,105600.0,105590.0,0.66350078]
[1749354339477,0.11528736,105600.0,105590.0,0.71350078]
[1749354340861,0.11528736,105600.0,105590.0,0.41779055]
[1749354341069,0.11528736,105600.0,105590.0,0.70391055]
[1749354341860,0.11528736,105600.0,105590.0,0.71338078]
[1749354342280,0.11528736,105600.0,105590.0,0.70391055]
[1749354343428,0.10581803,105600.0,105590.0,0.70391055]
[1749354343645,0.11528745,105600.0,105590.0,0.70391055]
[1749354344293,0.11528736,105600.0,105590.0,0.70391055]
[1749354344505,0.12475687,105600.0,105590.0,0.69444023]
[1749354345143,0.12475678,105600.0,105590.0,0.69444023]
[1749354345355,0.11528736,105600.0,105590.0,0.70391055]
[1749354347271,0.10581803,105600.0,105590.0,0.69444023]
[1749354347560,0.11528727,105600.0,105590.0,0.69444023]
[1749354347693,0.12475669,105600.0,105590.0,0.69444023]
[1749354347902,0.11528727,105600.0,105590.0,0.70391055]
[1749354348105,0.1247566,105600.0,105590.0,0.70391055]
[1749354348337,0.13422611,105600.0,105590.0,0.69444023]
[1749354348732,0.1247566,105600.0,105590.0,0.69444023]
[1749354349026,0.13422611,105600.0,105590.0,0.69444023]
[1749354349181,0.1247566,105600.0,105590.0,0.70391055]
[1749354349604,0.1247566,105600.0,105590.0,0.69444023]
[1749354349799,0.1247566,105600.0,105590.0,0.68496982]
[1749354350034,0.13422602,105600.0,105590.0,0.69444023]
[1749354350572,0.13422602,105600.0,105590.0,0.70391055]
[1749354350773,0.13422602,105600.0,105590.0,0.69444023]
[1749354352594,0.13422602,105600.0,105590.0,0.67924023]
[1749354353690,0.12475669,105600.0,105590.0,0.68871055]
[1749354354473,0.11528727,105600.0,105590.0,0.69818078]
[1749354358656,0.11528727,105600.0,105590.0,0.68871055]
[1749354358898,0.11528727,105600.0,105590.0,0.69818078]
[1749354360083,0.11528727,105600.0,105590.0,0.70765092]
[1749354360252,0.11528727,105600.0,105590.0,0.69818078]
[1749354361366,0.11528727,105600.0,105590.0,0.70765092]
[1749354362244,0.11528727,105600.0,105590.0,0.69818078]
[1749354362468,0.11528727,105600.0,105590.0,0.70765092]
[1749354365981,0.11528727,105600.0,105590.0,0.69818078]
[1749354366187,0.11528727,105600.0,105590.0,0.70765092]
[1749354367637,0.11528727,105600.0,105590.0,0.69818078]
[1749354367845,0.11528727,105600.0,105590.0,0.70765092]
[1749354370241,0.11528727,105600.0,105590.0,0.69818078]
[1749354370424,0.11528727,105600.0,105590.0,0.70765092]
[1749354373057,0.10581803,105600.0,105590.0,0.70765092]
[1749354374350,0.10581803,105600.0,105590.0,0.69818042]
[1749354374758,0.11528727,105600.0,105590.0,0.68871028]
[1749354375727,0.10581794,105600.0,105590.0,0.68871028]
[1749354375875,0.09634888,105600.0,105590.0,0.70765029]
[1749354376061,0.10581803,105600.0,105590.0,0.69818033]
[1749354376577,0.10581794,105600.0,105590.0,0.70765029]
[1749354376909,0.10581794,105600.0,105590.0,0.69818033]
[1749354377111,0.10581803,105600.0,105590.0,0.69818033]
[1749354377272,0.10581785,105600.0,105590.0,0.70765029]
[1749354378114,0.11528691,105600.0,105590.0,0.69818033]
[1749354378898,0.11528691,105600.0,105590.0,0.70765029]
[1749354379727,0.10581794,105600.0,105590.0,0.70765029]
[1749354380740,0.10581785,105600.0,105590.0,0.70765029]
[1749354383433,0.115287,105600.0,105590.0,0.69818033]
[1749354383629,0.11528691,105600.0,105590.0,0.69818033]
[1749354384041,0.11528691,105600.0,105590.0,0.70765029]
[1749354384522,0.08688,105600.0,105590.0,0.70765029]
[1749354384731,0.09634897,105600.0,105590.0,0.70765029]
[1749354385658,0.09634897,105600.0,105590.0,0.69818024]
[1749354385838,0.10581812,105600.0,105590.0,0.69818033]
[1749354386145,0.09634897,105600.0,105590.0,0.69818033]
[1749354386582,0.10581803,105600.0,105590.0,0.69818033]
[1749354386820,0.10581803,105600.0,105590.0,0.70765029]
[1749354388529,0.09634897,105600.0,105590.0,0.70765029]
[1749354388946,0.09634897,105600.0,105590.0,0.69818033]
[1749354389156,0.09634897,105600.0,105590.0,0.70765029]
[1749354391908,0.08688,105600.0,105590.0,0.70765029]
[1749354392134,0.09634897,105600.0,105590.0,0.70765029]
[1749354393901,0.09634888,105600.0,105590.0,0.70765029]
[1749354394109,0.08688,105600.0,105590.0,0.80404977]
[1749354394306,0.08688,105600.0,105590.0,1.2448976]
[1749354394509,0.87592253,105620.0,105610.0,0.189376]
[1749354394747,0.97199043,105620.0,105610.0,0.51300999]
[1749354394954,0.96252253,105620.0,105610.0,0.54141478]
[1749354395166,0.97199043,105620.0,105610.0,0.54141478]
[1749354395787,0.97982253,105620.0,105610.0,0.51300999]
[1749354395996,0.97982253,105620.0,105610.0,0.50354119]
[1749354396350,0.98929043,105620.0,105610.0,0.50354119]
[1749354396555,0.90269043,105620.0,105610.0,0.50354119]